[Event "Titled Tuesday Blitz December 27 Late 2022"]
[White "Avila Pavas, Santiago"]
[Black "Rego, Pedro Filipe"]
[WhiteFideId "4437128"]
[BlackFideId "1904310"]
[WhiteElo "2522"]
[BlackElo "2312"]
[Result "1-0"]
[Round "01"]
[TimeControl "180+2"]
[Date "2022.12.27"]
[WhiteClock "0:00:05"]
[BlackClock "0:00:10"]

1. d4 {[%clk 0:03:00]}  Nf6 {[%clk 0:02:56]} 2. Nf3 {[%clk 0:03:01]}  e6 {[%clk 0:02:54]} 3. Bf4 {[%clk 0:03:01]}  d5 {[%clk 0:02:52]} 4. e3 {[%clk 0:03:01]}  c5 {[%clk 0:02:52]} 5. c3 {[%clk 0:03:01]}  Bd6 {[%clk 0:02:46]} 6. Nbd2 {[%clk 0:02:52]}  O-O {[%clk 0:02:43]} 7. Bd3 {[%clk 0:02:48]}  b6 {[%clk 0:02:40]} 8. Bg3 {[%clk 0:02:45]}  Ba6 {[%clk 0:02:38]} 9. Bxa6 {[%clk 0:02:41]}  Nxa6 {[%clk 0:02:39]} 10. Ne5 {[%clk 0:02:40]}  Nb8 {[%clk 0:02:33]} 11. f4 {[%clk 0:02:33]}  Qc7 {[%clk 0:02:27]} 12. Bh4 {[%clk 0:02:31]}  Nfd7 {[%clk 0:02:22]} 13. Qg4 {[%clk 0:02:24]}  Nc6 {[%clk 0:02:16]} 14. Ndf3 {[%clk 0:02:07]}  Ne7 {[%clk 0:02:09]} 15. Qh3 {[%clk 0:01:22]}  Nf5 {[%clk 0:02:01]} 16. Bf2 {[%clk 0:01:15]}  cxd4 {[%clk 0:01:34]} 17. exd4 {[%clk 0:01:13]}  Nf6 {[%clk 0:01:25]} 18. g4 {[%clk 0:01:01]}  Ne7 {[%clk 0:01:24]} 19. Be3 {[%clk 0:00:43]}  b5 {[%clk 0:01:15]} 20. O-O {[%clk 0:00:43]}  Ne4 {[%clk 0:01:07]} 21. Nd3 {[%clk 0:00:39]}  a5 {[%clk 0:00:58]} 22. Nfe5 {[%clk 0:00:22]}  f6 {[%clk 0:00:52]} 23. Nf3 {[%clk 0:00:22]}  b4 {[%clk 0:00:49]} 24. cxb4 {[%clk 0:00:21]}  axb4 {[%clk 0:00:48]} 25. Rac1 {[%clk 0:00:21]}  Qd7 {[%clk 0:00:37]} 26. Ra1 {[%clk 0:00:09]}  Rfc8 {[%clk 0:00:35]} 27. Rfc1 {[%clk 0:00:09]}  Rxc1+ {[%clk 0:00:34]} 28. Rxc1 {[%clk 0:00:09]}  Rxa2 {[%clk 0:00:33]} 29. Qh5 {[%clk 0:00:10]}  Ra8 {[%clk 0:00:31]} 30. Qh3 {[%clk 0:00:10]}  Rc8 {[%clk 0:00:31]} 31. Qf1 {[%clk 0:00:10]}  Rxc1 {[%clk 0:00:28]} 32. Qxc1 {[%clk 0:00:11]}  Qc6 {[%clk 0:00:28]} 33. Qa1 {[%clk 0:00:11]}  Qc2 {[%clk 0:00:24]} 34. Nfe1 {[%clk 0:00:10]}  Qe2 {[%clk 0:00:22]} 35. Qc1 {[%clk 0:00:10]}  Qxg4+ {[%clk 0:00:16]} 36. Kh1 {[%clk 0:00:11]}  h5 {[%clk 0:00:14]} 37. Qa1 {[%clk 0:00:06]}  h4 {[%clk 0:00:14]} 38. Qa8+ {[%clk 0:00:06]}  Kf7 {[%clk 0:00:14]} 39. Qh8 {[%clk 0:00:06]}  h3 {[%clk 0:00:13]} 40. b3 {[%clk 0:00:05]}  Qf3+ {[%clk 0:00:10]} 41. Nxf3 {[%clk 0:00:05]} 1-0


[Site "https://www.chess.com"]

[Event "Titled Tuesday Blitz December 27 Late 2022"]
[White "Babazada, Khazar"]
[Black "Manukyan, Sargis A."]
[WhiteFideId "13413554"]
[BlackFideId "13303970"]
[WhiteElo "2474"]
[BlackElo "2158"]
[Result "1-0"]
[Round "01"]
[TimeControl "180+2"]
[Date "2022.12.27"]
[WhiteClock "0:01:04"]
[BlackClock "0:00:03"]

1. e4 {[%clk 0:03:00]}  e6 {[%clk 0:02:59]} 2. d4 {[%clk 0:02:57]}  d5 {[%clk 0:02:59]} 3. Nc3 {[%clk 0:02:58]}  Bb4 {[%clk 0:02:58]} 4. e5 {[%clk 0:02:58]}  c5 {[%clk 0:02:58]} 5. a3 {[%clk 0:02:58]}  Bxc3+ {[%clk 0:02:58]} 6. bxc3 {[%clk 0:02:59]}  Ne7 {[%clk 0:02:58]} 7. Nf3 {[%clk 0:02:57]}  b6 {[%clk 0:02:57]} 8. Bb5+ {[%clk 0:02:57]}  Bd7 {[%clk 0:02:56]} 9. Bd3 {[%clk 0:02:57]}  c4 {[%clk 0:02:56]} 10. Be2 {[%clk 0:02:57]}  Ba4 {[%clk 0:02:57]} 11. h4 {[%clk 0:02:56]}  h6 {[%clk 0:02:56]} 12. h5 {[%clk 0:02:55]}  Kd7 {[%clk 0:02:57]} 13. Nh4 {[%clk 0:02:55]}  Qg8 {[%clk 0:02:56]} 14. Rh3 {[%clk 0:02:42]}  Qh7 {[%clk 0:02:56]} 15. Ra2 {[%clk 0:02:40]}  Na6 {[%clk 0:02:55]} 16. Qd2 {[%clk 0:02:33]}  Nc7 {[%clk 0:02:49]} 17. Qf4 {[%clk 0:02:32]}  Raf8 {[%clk 0:02:47]} 18. Bd1 {[%clk 0:02:30]}  g5 {[%clk 0:02:37]} 19. hxg6 {[%clk 0:02:27]}  fxg6 {[%clk 0:02:37]} 20. Qg4 {[%clk 0:02:25]}  g5 {[%clk 0:02:33]} 21. Nf3 {[%clk 0:02:25]}  Qf5 {[%clk 0:01:55]} 22. Qxf5 {[%clk 0:02:25]}  exf5 {[%clk 0:01:52]} 23. Rh1 {[%clk 0:02:08]}  Ne6 {[%clk 0:01:48]} 24. g3 {[%clk 0:02:09]}  Ng6 {[%clk 0:01:36]} 25. Rb2 {[%clk 0:02:05]}  Kc6 {[%clk 0:01:05]} 26. Rb4 {[%clk 0:02:05]}  b5 {[%clk 0:01:03]} 27. Nd2 {[%clk 0:02:03]}  g4 {[%clk 0:00:53]} 28. Nf1 {[%clk 0:02:03]}  h5 {[%clk 0:00:50]} 29. Ne3 {[%clk 0:01:48]}  h4 {[%clk 0:00:46]} 30. Rf1 {[%clk 0:01:48]}  h3 {[%clk 0:00:35]} 31. Rb1 {[%clk 0:01:42]}  a5 {[%clk 0:00:24]} 32. Bd2 {[%clk 0:01:42]}  Rh5 {[%clk 0:00:17]} 33. Rh1 {[%clk 0:01:42]}  Ne7 {[%clk 0:00:14]} 34. Rc1 {[%clk 0:01:38]}  Rg8 {[%clk 0:00:14]} 35. f3 {[%clk 0:01:30]}  gxf3 {[%clk 0:00:07]} 36. Bxf3 {[%clk 0:01:31]}  Rh7 {[%clk 0:00:07]} 37. Kf2 {[%clk 0:01:16]}  f4 {[%clk 0:00:07]} 38. gxf4 {[%clk 0:01:04]}  Nxf4 {[%clk 0:00:08]} 39. Ng4 {[%clk 0:01:04]}  Nf5 {[%clk 0:00:05]} 40. Bxf4 {[%clk 0:01:04]}  b4 {[%clk 0:00:04]} 41. axb4 {[%clk 0:01:04]}  axb4 {[%clk 0:00:05]} 42. Nf6 {[%clk 0:01:04]}  Rhg7 {[%clk 0:00:03]} 43. Bxd5+ {[%clk 0:01:04]} 1-0


[Site "https://www.chess.com"]

[Event "Titled Tuesday Blitz December 27 Late 2022"]
[White "Balakrishnan, Praveen"]
[Black "Petrovic, Aleksa"]
[WhiteFideId "2064871"]
[BlackFideId "967629"]
[WhiteElo "2529"]
[BlackElo "2332"]
[Result "1-0"]
[Round "01"]
[TimeControl "180+2"]
[Date "2022.12.27"]
[WhiteClock "0:00:05"]
[BlackClock "0:00:03"]

1. d4 {[%clk 0:03:00]}  Nf6 {[%clk 0:02:58]} 2. c4 {[%clk 0:03:01]}  e6 {[%clk 0:02:57]} 3. g3 {[%clk 0:03:01]}  d5 {[%clk 0:02:54]} 4. Nf3 {[%clk 0:03:01]}  dxc4 {[%clk 0:02:53]} 5. Bg2 {[%clk 0:03:00]}  Bd7 {[%clk 0:02:53]} 6. Ne5 {[%clk 0:02:59]}  Bc6 {[%clk 0:02:53]} 7. Nxc6 {[%clk 0:02:59]}  Nxc6 {[%clk 0:02:54]} 8. O-O {[%clk 0:02:52]}  Qd7 {[%clk 0:02:53]} 9. e3 {[%clk 0:02:48]}  Rd8 {[%clk 0:02:51]} 10. Qa4 {[%clk 0:02:43]}  e5 {[%clk 0:02:50]} 11. Qxc4 {[%clk 0:02:02]}  exd4 {[%clk 0:02:49]} 12. exd4 {[%clk 0:02:03]}  Be7 {[%clk 0:02:44]} 13. Be3 {[%clk 0:01:55]}  O-O {[%clk 0:02:44]} 14. Nc3 {[%clk 0:01:52]}  h6 {[%clk 0:02:31]} 15. Rad1 {[%clk 0:01:51]}  Rfe8 {[%clk 0:02:28]} 16. d5 {[%clk 0:01:46]}  Ne5 {[%clk 0:02:25]} 17. Qd4 {[%clk 0:01:46]}  Bd6 {[%clk 0:01:43]} 18. Qxa7 {[%clk 0:01:41]}  Nfg4 {[%clk 0:01:19]} 19. Qd4 {[%clk 0:01:17]}  Qf5 {[%clk 0:01:15]} 20. Bf4 {[%clk 0:00:33]}  Qh5 {[%clk 0:00:50]} 21. h3 {[%clk 0:00:29]}  Nf6 {[%clk 0:00:50]} 22. Bxe5 {[%clk 0:00:24]}  Bxe5 {[%clk 0:00:49]} 23. Qc4 {[%clk 0:00:20]}  Bxc3 {[%clk 0:00:34]} 24. bxc3 {[%clk 0:00:20]}  c6 {[%clk 0:00:35]} 25. d6 {[%clk 0:00:19]}  Qe5 {[%clk 0:00:34]} 26. Qb4 {[%clk 0:00:16]}  Rd7 {[%clk 0:00:25]} 27. c4 {[%clk 0:00:17]}  c5 {[%clk 0:00:19]} 28. Qb6 {[%clk 0:00:16]}  Red8 {[%clk 0:00:18]} 29. Rfe1 {[%clk 0:00:15]}  Qf5 {[%clk 0:00:11]} 30. a4 {[%clk 0:00:10]}  h5 {[%clk 0:00:10]} 31. a5 {[%clk 0:00:08]}  h4 {[%clk 0:00:10]} 32. g4 {[%clk 0:00:08]}  Qf4 {[%clk 0:00:10]} 33. Qxc5 {[%clk 0:00:08]}  Rxd6 {[%clk 0:00:09]} 34. Rxd6 {[%clk 0:00:08]}  Rxd6 {[%clk 0:00:09]} 35. Bxb7 {[%clk 0:00:07]}  g5 {[%clk 0:00:09]} 36. Qc8+ {[%clk 0:00:07]}  Kg7 {[%clk 0:00:09]} 37. Qf5 {[%clk 0:00:08]}  Qd2 {[%clk 0:00:07]} 38. Rf1 {[%clk 0:00:07]}  Rd3 {[%clk 0:00:06]} 39. Bg2 {[%clk 0:00:07]}  Rd4 {[%clk 0:00:05]} 40. a6 {[%clk 0:00:07]}  Rxc4 {[%clk 0:00:05]} 41. Qb5 {[%clk 0:00:07]}  Rc1 {[%clk 0:00:03]} 42. a7 {[%clk 0:00:06]}  Rxf1+ {[%clk 0:00:03]} 43. Bxf1 {[%clk 0:00:06]}  Ne4 {[%clk 0:00:03]} 44. Qe5+ {[%clk 0:00:05]}  Nf6 {[%clk 0:00:03]} 45. a8=Q {[%clk 0:00:05]} 1-0


[Site "https://www.chess.com"]

[Event "Titled Tuesday Blitz December 27 Late 2022"]
[White "Bambino Filho, Antonio Carlos"]
[Black "Boros, Denes"]
[WhiteFideId "2113163"]
[BlackFideId "722340"]
[WhiteElo "2144"]
[BlackElo "2406"]
[Result "0-1"]
[Round "01"]
[TimeControl "180+2"]
[Date "2022.12.27"]
[WhiteClock "0:00:08"]
[BlackClock "0:00:57"]

1. e4 {[%clk 0:02:50]}  b6 {[%clk 0:03:00]} 2. d4 {[%clk 0:02:50]}  Bb7 {[%clk 0:03:01]} 3. Bd3 {[%clk 0:02:51]}  e6 {[%clk 0:03:02]} 4. Qe2 {[%clk 0:02:49]}  Ne7 {[%clk 0:03:01]} 5. Nf3 {[%clk 0:02:46]}  d6 {[%clk 0:03:01]} 6. O-O {[%clk 0:02:47]}  Nd7 {[%clk 0:03:02]} 7. a4 {[%clk 0:02:47]}  a6 {[%clk 0:03:02]} 8. c3 {[%clk 0:02:48]}  Ng6 {[%clk 0:03:02]} 9. Re1 {[%clk 0:02:48]}  Be7 {[%clk 0:03:02]} 10. Be3 {[%clk 0:02:48]}  O-O {[%clk 0:03:02]} 11. Nbd2 {[%clk 0:02:49]}  c5 {[%clk 0:03:02]} 12. Nf1 {[%clk 0:02:49]}  Nf6 {[%clk 0:02:56]} 13. Ng3 {[%clk 0:02:48]}  Re8 {[%clk 0:02:55]} 14. Rad1 {[%clk 0:02:48]}  Qc7 {[%clk 0:02:55]} 15. h4 {[%clk 0:02:36]}  Nf8 {[%clk 0:02:47]} 16. h5 {[%clk 0:02:32]}  h6 {[%clk 0:02:47]} 17. Nh2 {[%clk 0:02:28]}  Bc6 {[%clk 0:02:42]} 18. a5 {[%clk 0:02:23]}  cxd4 {[%clk 0:02:37]} 19. Bxd4 {[%clk 0:02:18]}  bxa5 {[%clk 0:02:35]} 20. Ng4 {[%clk 0:02:17]}  N8d7 {[%clk 0:02:30]} 21. Bb1 {[%clk 0:01:54]}  Rab8 {[%clk 0:02:23]} 22. Nxf6+ {[%clk 0:01:52]}  Bxf6 {[%clk 0:02:19]} 23. f4 {[%clk 0:01:26]}  e5 {[%clk 0:02:18]} 24. Be3 {[%clk 0:01:22]}  exf4 {[%clk 0:02:14]} 25. Bxf4 {[%clk 0:01:22]}  Qb6+ {[%clk 0:02:14]} 26. Kh2 {[%clk 0:01:16]}  Qxb2 {[%clk 0:01:53]} 27. Qg4 {[%clk 0:01:16]}  Ne5 {[%clk 0:01:51]} 28. Qh3 {[%clk 0:00:33]}  Bd7 {[%clk 0:01:28]} 29. Nf5 {[%clk 0:00:33]}  Bxf5 {[%clk 0:01:27]} 30. exf5 {[%clk 0:00:32]}  Red8 {[%clk 0:01:14]} 31. Be4 {[%clk 0:00:32]}  Rbc8 {[%clk 0:01:09]} 32. Re3 {[%clk 0:00:27]}  a4 {[%clk 0:01:09]} 33. Rg3 {[%clk 0:00:25]}  Kf8 {[%clk 0:01:05]} 34. Bd5 {[%clk 0:00:25]}  a3 {[%clk 0:01:03]} 35. c4 {[%clk 0:00:14]}  a2 {[%clk 0:01:01]} 36. Ra3 {[%clk 0:00:11]}  Ng4+ {[%clk 0:00:58]} 37. Kg3 {[%clk 0:00:08]}  Qxa3+ {[%clk 0:00:57]} 38. Kxg4 {[%clk 0:00:08]}  Qxh3+ {[%clk 0:00:56]} 39. Kxh3 {[%clk 0:00:08]}  a1=Q {[%clk 0:00:57]} 0-1


[Site "https://www.chess.com"]

[Event "Titled Tuesday Blitz December 27 Late 2022"]
[White "Battlecruiser_Operational"]
[Black "Talibov, Shiroghlan"]
[BlackFideId "13429078"]
[WhiteElo "2417"]
[BlackElo "2359"]
[Result "0-1"]
[Round "01"]
[TimeControl "180+2"]
[Date "2022.12.27"]
[WhiteClock "0:00:12"]
[BlackClock "0:00:28"]

1. d4 {[%clk 0:02:59]}  d6 {[%clk 0:02:58]} 2. Nf3 {[%clk 0:02:59]}  Nf6 {[%clk 0:02:58]} 3. c4 {[%clk 0:02:59]}  Nbd7 {[%clk 0:02:50]} 4. Nc3 {[%clk 0:02:56]}  e5 {[%clk 0:02:43]} 5. e4 {[%clk 0:02:55]}  c6 {[%clk 0:02:42]} 6. Be2 {[%clk 0:02:55]}  Be7 {[%clk 0:02:40]} 7. O-O {[%clk 0:02:55]}  Qc7 {[%clk 0:02:39]} 8. Re1 {[%clk 0:02:54]}  h6 {[%clk 0:02:39]} 9. Bf1 {[%clk 0:02:53]}  g5 {[%clk 0:02:34]} 10. h3 {[%clk 0:02:49]}  Nf8 {[%clk 0:02:25]} 11. c5 {[%clk 0:02:42]}  Ng6 {[%clk 0:02:15]} 12. cxd6 {[%clk 0:02:41]}  Bxd6 {[%clk 0:02:16]} 13. dxe5 {[%clk 0:02:40]}  Nxe5 {[%clk 0:02:15]} 14. Nxe5 {[%clk 0:02:40]}  Bxe5 {[%clk 0:02:16]} 15. Be3 {[%clk 0:02:38]}  Be6 {[%clk 0:02:11]} 16. Rc1 {[%clk 0:02:35]}  Qe7 {[%clk 0:02:03]} 17. Qa4 {[%clk 0:02:27]}  O-O {[%clk 0:02:01]} 18. g3 {[%clk 0:02:13]}  Kh8 {[%clk 0:01:44]} 19. Bg2 {[%clk 0:02:08]}  Rfd8 {[%clk 0:01:35]} 20. f4 {[%clk 0:02:00]}  gxf4 {[%clk 0:01:20]} 21. gxf4 {[%clk 0:02:01]}  b5 {[%clk 0:01:20]} 22. Qa6 {[%clk 0:01:51]}  Bd4 {[%clk 0:01:18]} 23. Bxd4 {[%clk 0:01:46]}  Rxd4 {[%clk 0:01:18]} 24. Qxc6 {[%clk 0:01:46]}  Rg8 {[%clk 0:01:16]} 25. Rc2 {[%clk 0:01:23]}  b4 {[%clk 0:00:40]} 26. Nb5 {[%clk 0:01:06]}  Rd3 {[%clk 0:00:33]} 27. Kh2 {[%clk 0:00:28]}  Ng4+ {[%clk 0:00:30]} 28. Kh1 {[%clk 0:00:26]}  Qh4 {[%clk 0:00:28]} 29. Rec1 {[%clk 0:00:12]}  Rxh3+ {[%clk 0:00:28]} 30. Bxh3 {[%clk 0:00:13]}  Qxh3+ {[%clk 0:00:29]} 31. Kg1 {[%clk 0:00:13]}  Ne3+ {[%clk 0:00:27]} 32. Rg2 {[%clk 0:00:12]}  Rxg2# {[%clk 0:00:28]} 0-1


[Site "https://www.chess.com"]

[Event "Titled Tuesday Blitz December 27 Late 2022"]
[White "Bettalli, Francesco"]
[Black "Melkumyan, Hrant"]
[WhiteFideId "2816453"]
[BlackFideId "13302485"]
[WhiteElo "2252"]
[BlackElo "2645"]
[Result "0-1"]
[Round "01"]
[TimeControl "180+2"]
[Date "2022.12.27"]
[WhiteClock "0:00:16"]
[BlackClock "0:00:10"]

1. d4 {[%clk 0:02:56]}  Nf6 {[%clk 0:02:59]} 2. Nc3 {[%clk 0:02:56]}  d5 {[%clk 0:02:59]} 3. Bg5 {[%clk 0:02:55]}  Bf5 {[%clk 0:02:58]} 4. f3 {[%clk 0:02:55]}  Nbd7 {[%clk 0:02:58]} 5. e4 {[%clk 0:02:53]}  dxe4 {[%clk 0:02:58]} 6. Bc4 {[%clk 0:02:54]}  h6 {[%clk 0:02:52]} 7. Bh4 {[%clk 0:02:52]}  g5 {[%clk 0:02:49]} 8. Bg3 {[%clk 0:02:40]}  Bg7 {[%clk 0:02:48]} 9. Qe2 {[%clk 0:02:35]}  Nb6 {[%clk 0:02:40]} 10. fxe4 {[%clk 0:02:25]}  Bg4 {[%clk 0:02:38]} 11. Qd3 {[%clk 0:02:25]}  Nh5 {[%clk 0:02:32]} 12. Nge2 {[%clk 0:02:18]}  Nxg3 {[%clk 0:02:19]} 13. hxg3 {[%clk 0:02:19]}  e6 {[%clk 0:02:10]} 14. Bb3 {[%clk 0:02:13]}  c6 {[%clk 0:02:06]} 15. a4 {[%clk 0:02:11]}  a5 {[%clk 0:02:03]} 16. O-O {[%clk 0:02:07]}  Qd6 {[%clk 0:01:59]} 17. e5 {[%clk 0:02:02]}  Qe7 {[%clk 0:01:46]} 18. Ne4 {[%clk 0:02:01]}  Rd8 {[%clk 0:01:40]} 19. c3 {[%clk 0:01:57]}  Bxe5 {[%clk 0:01:31]} 20. Qe3 {[%clk 0:01:53]}  Bg7 {[%clk 0:01:30]} 21. Rae1 {[%clk 0:01:51]}  Nd5 {[%clk 0:01:28]} 22. Qf2 {[%clk 0:01:37]}  O-O {[%clk 0:01:28]} 23. Nc1 {[%clk 0:01:34]}  Bf5 {[%clk 0:01:24]} 24. Nd3 {[%clk 0:01:33]}  b5 {[%clk 0:01:11]} 25. axb5 {[%clk 0:01:32]}  cxb5 {[%clk 0:01:10]} 26. Nec5 {[%clk 0:01:32]}  Bxd3 {[%clk 0:01:02]} 27. Nxd3 {[%clk 0:01:33]}  a4 {[%clk 0:01:02]} 28. Bc2 {[%clk 0:01:31]}  a3 {[%clk 0:01:00]} 29. Bb1 {[%clk 0:01:19]}  axb2 {[%clk 0:00:59]} 30. Qxb2 {[%clk 0:01:20]}  Nxc3 {[%clk 0:00:59]} 31. Ne5 {[%clk 0:01:16]}  Nxb1 {[%clk 0:00:59]} 32. Rxb1 {[%clk 0:01:12]}  Rd5 {[%clk 0:00:55]} 33. Qe2 {[%clk 0:01:03]}  Qa7 {[%clk 0:00:50]} 34. Kh1 {[%clk 0:00:57]}  Qxd4 {[%clk 0:00:46]} 35. Nc6 {[%clk 0:00:57]}  Qc5 {[%clk 0:00:46]} 36. Rfc1 {[%clk 0:00:56]}  Qd6 {[%clk 0:00:44]} 37. Rxb5 {[%clk 0:00:51]}  Rxb5 {[%clk 0:00:44]} 38. Qxb5 {[%clk 0:00:52]}  Qxg3 {[%clk 0:00:44]} 39. Ne7+ {[%clk 0:00:50]}  Kh8 {[%clk 0:00:44]} 40. Qb4 {[%clk 0:00:42]}  Rd8 {[%clk 0:00:37]} 41. Rf1 {[%clk 0:00:39]}  f5 {[%clk 0:00:24]} 42. Ng6+ {[%clk 0:00:37]}  Kh7 {[%clk 0:00:24]} 43. Qe7 {[%clk 0:00:35]}  Qd6 {[%clk 0:00:15]} 44. Qf7 {[%clk 0:00:26]}  Rc8 {[%clk 0:00:11]} 45. Ne7 {[%clk 0:00:16]}  Rf8 {[%clk 0:00:08]} 46. Qg6+ {[%clk 0:00:16]}  Kh8 {[%clk 0:00:09]} 47. Re1 {[%clk 0:00:16]}  Qxe7 {[%clk 0:00:09]} 48. Rxe6 {[%clk 0:00:16]}  Qf7 {[%clk 0:00:10]} 0-1


[Site "https://www.chess.com"]

[Event "Titled Tuesday Blitz December 27 Late 2022"]
[White "Bok, Benjamin"]
[Black "Vega Gutierrez, Sabrina"]
[WhiteFideId "1017063"]
[BlackFideId "2219026"]
[WhiteElo "2607"]
[BlackElo "2377"]
[Result "1-0"]
[Round "01"]
[TimeControl "180+2"]
[Date "2022.12.27"]
[WhiteClock "0:00:12"]
[BlackClock "0:00:01"]

1. d4 {[%clk 0:03:00]}  d5 {[%clk 0:02:59]} 2. c4 {[%clk 0:03:01]}  e6 {[%clk 0:03:00]} 3. Nc3 {[%clk 0:03:01]}  c6 {[%clk 0:03:00]} 4. e3 {[%clk 0:03:00]}  f5 {[%clk 0:02:59]} 5. Bd3 {[%clk 0:02:55]}  Nf6 {[%clk 0:02:59]} 6. Qc2 {[%clk 0:02:55]}  Bd6 {[%clk 0:02:54]} 7. Nge2 {[%clk 0:02:45]}  O-O {[%clk 0:02:53]} 8. f3 {[%clk 0:02:45]}  dxc4 {[%clk 0:02:49]} 9. Bxc4 {[%clk 0:02:45]}  b5 {[%clk 0:02:47]} 10. Bb3 {[%clk 0:02:41]}  Kh8 {[%clk 0:02:47]} 11. O-O {[%clk 0:02:40]}  Qe7 {[%clk 0:02:26]} 12. Bd2 {[%clk 0:02:16]}  Nbd7 {[%clk 0:02:22]} 13. Rae1 {[%clk 0:02:10]}  b4 {[%clk 0:02:18]} 14. Na4 {[%clk 0:02:02]}  Ba6 {[%clk 0:01:46]} 15. Qxc6 {[%clk 0:01:56]}  Bd3 {[%clk 0:01:32]} 16. Nc5 {[%clk 0:01:27]}  Bxc5 {[%clk 0:01:28]} 17. dxc5 {[%clk 0:01:26]}  Nxc5 {[%clk 0:01:23]} 18. Bxb4 {[%clk 0:01:24]}  Rfc8 {[%clk 0:01:22]} 19. Bxc5 {[%clk 0:01:23]}  Qxc5 {[%clk 0:01:17]} 20. Qxc5 {[%clk 0:01:24]}  Rxc5 {[%clk 0:01:17]} 21. Rf2 {[%clk 0:01:24]}  e5 {[%clk 0:01:15]} 22. Nc3 {[%clk 0:01:23]}  e4 {[%clk 0:01:11]} 23. fxe4 {[%clk 0:01:23]}  fxe4 {[%clk 0:01:10]} 24. h3 {[%clk 0:01:20]}  Rb8 {[%clk 0:01:04]} 25. Ne2 {[%clk 0:01:20]}  a5 {[%clk 0:01:03]} 26. Nf4 {[%clk 0:01:19]}  Re8 {[%clk 0:00:44]} 27. Nxd3 {[%clk 0:01:14]}  exd3 {[%clk 0:00:45]} 28. Rd2 {[%clk 0:01:14]}  Rd8 {[%clk 0:00:29]} 29. Red1 {[%clk 0:01:13]}  h5 {[%clk 0:00:24]} 30. Rxd3 {[%clk 0:01:13]}  Rxd3 {[%clk 0:00:24]} 31. Rxd3 {[%clk 0:01:14]}  h4 {[%clk 0:00:23]} 32. Kf2 {[%clk 0:01:09]}  Rc1 {[%clk 0:00:21]} 33. Rd1 {[%clk 0:01:09]}  Rc5 {[%clk 0:00:20]} 34. Kf3 {[%clk 0:01:04]}  Rf5+ {[%clk 0:00:20]} 35. Ke2 {[%clk 0:01:05]}  Ne4 {[%clk 0:00:20]} 36. Rd4 {[%clk 0:00:46]}  Ng3+ {[%clk 0:00:16]} 37. Kd3 {[%clk 0:00:46]}  g5 {[%clk 0:00:16]} 38. Rd5 {[%clk 0:00:44]}  Rf2 {[%clk 0:00:15]} 39. Rxa5 {[%clk 0:00:41]}  Rxg2 {[%clk 0:00:11]} 40. Rxg5 {[%clk 0:00:42]}  Rh2 {[%clk 0:00:12]} 41. Be6 {[%clk 0:00:31]}  Rxb2 {[%clk 0:00:11]} 42. Rg4 {[%clk 0:00:31]}  Nf1 {[%clk 0:00:04]} 43. Rxh4+ {[%clk 0:00:30]}  Kg7 {[%clk 0:00:05]} 44. Rg4+ {[%clk 0:00:30]}  Kf6 {[%clk 0:00:05]} 45. Rf4+ {[%clk 0:00:21]}  Kxe6 {[%clk 0:00:04]} 46. Rxf1 {[%clk 0:00:22]}  Rxa2 {[%clk 0:00:04]} 47. Rf4 {[%clk 0:00:17]}  Rh2 {[%clk 0:00:04]} 48. h4 {[%clk 0:00:17]}  Ke5 {[%clk 0:00:05]} 49. Ra4 {[%clk 0:00:17]}  Rh1 {[%clk 0:00:03]} 50. Ra5+ {[%clk 0:00:16]}  Ke6 {[%clk 0:00:03]} 51. h5 {[%clk 0:00:17]}  Rh4 {[%clk 0:00:03]} 52. e4 {[%clk 0:00:17]}  Ke7 {[%clk 0:00:02]} 53. Kd4 {[%clk 0:00:16]}  Rh1 {[%clk 0:00:02]} 54. Ra7+ {[%clk 0:00:14]}  Ke6 {[%clk 0:00:02]} 55. Ra6+ {[%clk 0:00:15]}  Ke7 {[%clk 0:00:02]} 56. h6 {[%clk 0:00:15]}  Rh5 {[%clk 0:00:02]} 57. h7 {[%clk 0:00:12]}  Kd7 {[%clk 0:00:01]} 58. Ra8 {[%clk 0:00:12]} 1-0


[Site "https://www.chess.com"]

[Event "Titled Tuesday Blitz December 27 Late 2022"]
[White "Bortnyk, Olexandr"]
[Black "Martin Carmona, Gaston Manuel"]
[WhiteFideId "14120828"]
[BlackFideId "22284567"]
[WhiteElo "2605"]
[BlackElo "2333"]
[Result "1-0"]
[Round "01"]
[TimeControl "180+2"]
[Date "2022.12.27"]
[WhiteClock "0:00:37"]
[BlackClock "0:00:04"]

1. e4 {[%clk 0:03:00]}  c5 {[%clk 0:02:55]} 2. c3 {[%clk 0:03:00]}  Nf6 {[%clk 0:02:54]} 3. e5 {[%clk 0:03:01]}  Nd5 {[%clk 0:02:54]} 4. d4 {[%clk 0:03:02]}  cxd4 {[%clk 0:02:53]} 5. Nf3 {[%clk 0:03:03]}  Nc6 {[%clk 0:02:51]} 6. cxd4 {[%clk 0:03:03]}  d6 {[%clk 0:02:51]} 7. Bc4 {[%clk 0:03:04]}  Nb6 {[%clk 0:02:50]} 8. Bb5 {[%clk 0:03:04]}  dxe5 {[%clk 0:02:47]} 9. Nxe5 {[%clk 0:03:05]}  Qd6 {[%clk 0:02:44]} 10. Qf3 {[%clk 0:03:03]}  Qd5 {[%clk 0:02:05]} 11. Qxd5 {[%clk 0:02:40]}  Nxd5 {[%clk 0:02:06]} 12. Nxc6 {[%clk 0:02:41]}  Bd7 {[%clk 0:02:06]} 13. Nxa7 {[%clk 0:02:41]}  Rxa7 {[%clk 0:02:07]} 14. Bxd7+ {[%clk 0:02:41]}  Kxd7 {[%clk 0:02:07]} 15. Nc3 {[%clk 0:02:41]}  e6 {[%clk 0:02:01]} 16. Nxd5 {[%clk 0:02:30]}  exd5 {[%clk 0:02:02]} 17. O-O {[%clk 0:02:31]}  Be7 {[%clk 0:01:38]} 18. Be3 {[%clk 0:02:28]}  Rha8 {[%clk 0:01:35]} 19. a3 {[%clk 0:01:54]}  Ra4 {[%clk 0:01:35]} 20. Rac1 {[%clk 0:01:10]}  b6 {[%clk 0:01:34]} 21. Rc3 {[%clk 0:01:05]}  Bf6 {[%clk 0:01:32]} 22. Rd1 {[%clk 0:01:04]}  Rc4 {[%clk 0:01:14]} 23. Rb3 {[%clk 0:00:59]}  Kc6 {[%clk 0:01:10]} 24. Kf1 {[%clk 0:00:56]}  Raa4 {[%clk 0:01:10]} 25. Rbd3 {[%clk 0:00:55]}  Rc2 {[%clk 0:01:10]} 26. R1d2 {[%clk 0:00:53]}  Rc1+ {[%clk 0:00:57]} 27. Ke2 {[%clk 0:00:53]}  Rac4 {[%clk 0:00:55]} 28. g3 {[%clk 0:00:49]}  Rh1 {[%clk 0:00:55]} 29. h4 {[%clk 0:00:49]}  h5 {[%clk 0:00:53]} 30. Kf3 {[%clk 0:00:49]}  g6 {[%clk 0:00:51]} 31. b3 {[%clk 0:00:49]}  Rcc1 {[%clk 0:00:47]} 32. a4 {[%clk 0:00:50]}  Rce1 {[%clk 0:00:30]} 33. Rc2+ {[%clk 0:00:49]}  Kd7 {[%clk 0:00:29]} 34. Rdc3 {[%clk 0:00:49]}  Bd8 {[%clk 0:00:28]} 35. Rc6 {[%clk 0:00:44]}  Rhf1 {[%clk 0:00:21]} 36. b4 {[%clk 0:00:39]}  Ra1 {[%clk 0:00:21]} 37. Bf4 {[%clk 0:00:39]}  Be7 {[%clk 0:00:05]} 38. Rxb6 {[%clk 0:00:38]}  Rxa4 {[%clk 0:00:04]} 39. Rc7+ {[%clk 0:00:37]}  Ke8 {[%clk 0:00:04]} 40. Rb8+ {[%clk 0:00:37]}  Bd8 {[%clk 0:00:04]} 41. Bg5 {[%clk 0:00:37]} 1-0


[Site "https://www.chess.com"]